[Event "Mentese GM 2019"]
[Site "Mentese"]
[Date "2019.06.25"]
[Round "4.4"]
[White "Bagaturov, Giorgi"]
[Black "Sibashvili, Giorgi"]
[Result "1/2-1/2"]
[ECO "A14"]
[WhiteElo "2422"]
[BlackElo "2368"]
[Annotator "NA"]
[PlyCount "159"]
[EventDate "2019.06.24"]
[EventType "schev"]
[EventCountry "TUR"]
[SourceTitle "playchess.com"]
[Source "ChessBase"]
[SourceQuality "1"]
[TimeControl "5400+30"]

1. c4 {[%emt 0:00:30]} Nf6 {[%emt 0:02:30]} 2. Nf3 {[%emt 0:00:30]} e6 {[%emt 0:00:30]} 3. g3 {[%emt 0:01:30]} d5 {[%emt 0:00:30]} 4. Bg2 {[%emt 0:00:30]} Be7 {[%emt 0:01:30]} 5. O-O {[%emt 0:00:00]} O-O {[%emt 0:00:30]} 6. b3 {[%emt 0:05:00]} b6 {[%emt 0:01:30]} 7. Bb2 {[%emt 0:03:30]} Bb7 {[%emt 0:02:30]} 8. e3 {[%emt 0:00:30]} c5 {[%emt 0:00:30]} 9. Nc3 {[%emt 0:02:30]} Nc6 {[%emt 0:02:30]} 10. cxd5 {[%emt 0:02:30]} Nxd5 {[%emt 0:11:30]} 11. Nxd5 {[%emt 0:02:30]} exd5 {[%emt 0:01:30]} 12. d4 {[%emt 0:01:30]} Ba6 {[%emt 0:09:30]} 13. Re1 {[%emt 0:01:30]} c4 {[%emt 0:04:30]} 14. bxc4 {[%emt 0:26:30]} dxc4 {[%emt 0:01:30]} 15. d5 {[%emt 0:08:30]} Nb4 {[%emt 0:02:30]} 16. Ne5 {[%emt 0:00:30]} Rc8 {[%emt 0:11:30]} 17. a3 {[%emt 0:08:30]} Nd3 {[%emt 0:08:30]} 18. Nxd3 {[%emt 0:01:30]} cxd3 {[%emt 0:00:30]} 19. Be4 {[%emt 0:02:30]} Bc4 {[%emt 0:10:30]} 20. Qh5 {[%emt 0:21:14]} g6 {[%emt 0:00:30]} 21. Qe5 {[%emt 0:00:04]} f6 {[%emt 0:00:00]} 22. Qe6+ {[%emt 0:00:30]} Kg7 {[%emt 0:03:00]} 23. Red1 {[%emt 0:00:13]} Rc5 {[%emt 0:03:30]} 24. Bd4 {[%emt 0:02:25]} Rxd5 {[%emt 0:04:23]} 25. Bxd5 {[%emt 0:00:38]} Bxd5 {[%emt 0:00:04]} 26. Qg4 {[%emt 0:00:08]} h5 {[%emt 0:00:38]} 27. Qh4 {[%emt 0:00:05]} Kh6 {[%emt 0:13:48]} 28. Rxd3 {[%emt 0:02:35]} Qc8 {[%emt 0:02:27]} 29. Bb2 {[%emt 0:02:38]} Ba8 {[%emt 0:00:57]} 30. Qa4 {[%emt 0:01:30]} Qb7 {[%emt 0:00:38]} 31. e4 {[%emt 0:00:08]} Bc5 {[%emt 0:00:18]} 32. Rd7 {[%emt 0:00:32]} Qxe4 {[%emt 0:00:43]} 33. Qxe4 {[%emt 0:00:17]} Bxe4 {[%emt 0:00:01]} 34. Re1 {[%emt 0:02:21]} Bc6 {[%emt 0:00:53]} 35. Rxa7 {[%emt 0:00:26]} Rd8 {[%emt 0:00:10]} 36. Rf7 {[%emt 0:00:47]} Rd2 {[%emt 0:00:43]} 37. Rxf6 {[%emt 0:00:37]} Rxb2 {[%emt 0:00:13]} 38. Rxc6 {[%emt 0:00:07]} Bxf2+ {[%emt 0:00:03]} 39. Kf1 {[%emt 0:00:00]} Bxe1 {[%emt 0:00:05]} 40. Kxe1 {[%emt 0:00:05]} Rxh2 {[%emt 0:01:25]} 41. Rxb6 {[%emt 0:00:12]} Rg2 {[%emt 0:00:45]} 42. Rb3 {[%emt 0:00:16]} Ra2 {[%emt 0:00:42]} 43. Kf1 {[%emt 0:00:46]} Kg5 {[%emt 0:00:09]} 44. Rb4 {[%emt 0:00:10]} Rxa3 {[%emt 0:00:31]} 45. Kg2 {[%emt 0:00:05]} Ra5 {[%emt 0:00:11]} 46. Rc4 {[%emt 0:00:22]} Re5 {[%emt 0:00:19]} 47. Ra4 {[%emt 0:00:12]} Kf5 {[%emt 0:00:05]} 48. Rf4+ {[%emt 0:01:37]} Ke6 {[%emt 0:00:13]} 49. Ra4 {[%emt 0:00:15]} g5 {[%emt 0:00:18]} 50. Kf3 {[%emt 0:00:57]} Rb5 {[%emt 0:00:51]} 51. Ke4 {[%emt 0:00:31]} Re5+ {[%emt 0:01:37]} 52. Kf3 {[%emt 0:00:08]} Kf5 {[%emt 0:00:40]} 53. Ra8 {[%emt 0:00:34]} Rb5 {[%emt 0:00:19]} 54. Rf8+ {[%emt 0:00:32]} Kg6 {[%emt 0:00:11]} 55. Rg8+ {[%emt 0:00:31]} Kf7 {[%emt 0:00:06]} 56. Rh8 {[%emt 0:00:45]} Rb3+ {[%emt 0:00:13]} 57. Kf2 {[%emt 0:00:28]} Kg6 {[%emt 0:00:21]} 58. Ra8 {[%emt 0:00:37]} Kf5 {[%emt 0:01:00]} 59. Ra4 {[%emt 0:00:37]} Rb2+ {[%emt 0:00:19]} 60. Ke3 {[%emt 0:00:44]} Rc2 {[%emt 0:00:58]} 61. Rb4 {[%emt 0:00:16]} Ra2 {[%emt 0:00:20]} 62. Rc4 {[%emt 0:00:10]} Rh2 {[%emt 0:01:02]} 63. Ra4 {[%emt 0:00:32]} Rh1 {[%emt 0:00:39]} 64. Kf2 {[%emt 0:00:55]} Rh2+ {[%emt 0:00:31]} 65. Ke3 {[%emt 0:00:06]} Rb2 {[%emt 0:00:06]} 66. Rc4 {[%emt 0:00:16]} Rb5 {[%emt 0:00:37]} 67. Ra4 {[%emt 0:00:35]} g4 {[%emt 0:00:27]} 68. Kf2 {[%emt 0:02:02]} Rb2+ {[%emt 0:00:20]} 69. Ke3 {[%emt 0:00:37]} Rb3+ {[%emt 0:01:02]} 70. Kf2 {[%emt 0:00:04]} Rf3+ {[%emt 0:00:19]} 71. Kg2 {[%emt 0:00:05]} Re3 {[%emt 0:00:03]} 72. Ra5+ {[%emt 0:00:37]} Re5 {[%emt 0:00:05]} 73. Ra4 {[%emt 0:00:20]} Re2+ {[%emt 0:00:30]} 74. Kf1 {[%emt 0:00:09]} Rd2 {[%emt 0:00:06]} 75. Kg1 {[%emt 0:00:47]} Ke5 {[%emt 0:00:17]} 76. Rb4 {[%emt 0:00:51]} Rd4 {[%emt 0:00:10]} 77. Rb5+ {[%emt 0:00:16]} Ke4 {[%emt 0:00:16]} 78. Rxh5 {[%emt 0:00:43]} Kf3 {[%emt 0:00:04]} 79. Rf5+ {[%emt 0:00:06]} Kxg3 {[%emt 0:00:06]} 80. Rf1 {[%emt 0:00:04]} 1/2-1/2

[Event "Mentese GM 2019"]
[Site "Mentese"]
[Date "2019.06.25"]
[Round "4.5"]
[White "Odeev, Handszar"]
[Black "Alumert, Orkun Efe"]
[Result "1-0"]
[ECO "C07"]
[WhiteElo "2386"]
[BlackElo "2008"]
[Annotator "NA"]
[PlyCount "83"]
[EventDate "2019.06.24"]
[EventType "schev"]
[EventCountry "TUR"]
[SourceTitle "playchess.com"]
[Source "ChessBase"]
[SourceQuality "1"]
[TimeControl "5400+30"]

1. e4 {[%emt 0:00:30]} e6 {[%emt 0:00:30]} 2. d4 {[%emt 0:00:30]} d5 {[%emt 0:00:00]} 3. Nd2 {[%emt 0:00:00]} c5 {[%emt 0:00:00]} 4. Ngf3 {[%emt 0:00:00]} cxd4 {[%emt 0:00:30]} 5. exd5 {[%emt 0:00:30]} Qxd5 {[%emt 0:00:00]} 6. Bc4 {[%emt 0:00:00]} Qd6 {[%emt 0:00:00]} 7. O-O {[%emt 0:00:00]} Nf6 {[%emt 0:00:30]} 8. Nb3 {[%emt 0:00:00]} Nc6 {[%emt 0:00:00]} 9. Nbxd4 {[%emt 0:00:00]} Nxd4 {[%emt 0:00:00]} 10. Nxd4 {[%emt 0:00:30]} a6 {[%emt 0:00:30]} 11. Bb3 {[%emt 0:00:30]} Qc7 {[%emt 0:01:30]} 12. Re1 {[%emt 0:01:30]} Bd6 {[%emt 0:00:30]} 13. Nf5 {[%emt 0:01:30]} Bxh2+ {[%emt 0:00:30]} 14. Kh1 {[%emt 0:00:30]} O-O {[%emt 0:01:30]} 15. Nxg7 {[%emt 0:10:30]} Rd8 {[%emt 0:02:30]} 16. Qf3 {[%emt 0:10:30]} Kxg7 {[%emt 0:00:30]} 17. c3 {[%emt 0:27:30]} Be5 {[%emt 0:15:30]} 18. Qe3 {[%emt 0:05:30]} Nd7 {[%emt 0:04:30]} 19. Qh6+ {[%emt 0:04:30]} Kh8 {[%emt 0:11:30]} 20. Bc2 {[%emt 0:05:30]} Nf8 {[%emt 0:01:30]} 21. Rxe5 {[%emt 0:00:00]} Qxe5 {[%emt 0:01:30]} 22. Bg5 {[%emt 0:00:00]} Ng6 {[%emt 0:01:30]} 23. Bxd8 {[%emt 0:01:30]} Qg7 {[%emt 0:03:30]} 24. Qg5 {[%emt 0:00:30]} h6 {[%emt 0:00:30]} 25. Qd2 {[%emt 0:02:30]} e5 {[%emt 0:02:30]} 26. Qd6 {[%emt 0:06:30]} Be6 {[%emt 0:01:30]} 27. Be4 {[%emt 0:00:30]} Rc8 {[%emt 0:01:30]} 28. Re1 {[%emt 0:02:30]} Rc4 {[%emt 0:01:30]} 29. Re3 {[%emt 0:00:30]} Kh7 {[%emt 0:01:30]} 30. Bxb7 {[%emt 0:07:06]} Rf4 {[%emt 0:01:30]} 31. Kg1 {[%emt 0:01:40]} Bxa2 {[%emt 0:01:30]} 32. g3 {[%emt 0:00:58]} Ra4 {[%emt 0:02:30]} 33. Bf6 {[%emt 0:05:52]} Qg8 {[%emt 0:00:30]} 34. Bxe5 {[%emt 0:01:19]} Be6 {[%emt 0:01:30]} 35. Bd4 {[%emt 0:00:32]} Ra1+ {[%emt 0:00:00]} 36. Kh2 {[%emt 0:00:08]} Nh4 {[%emt 0:01:00]} 37. Rxe6 {[%emt 0:00:51]} fxe6 {[%emt 0:00:30]} 38. Qe7+ {[%emt 0:00:16]} Kg6 {[%emt 0:00:30]} 39. Qxh4 {[%emt 0:00:50]} Re1 {[%emt 0:00:00]} 40. Be4+ {[%emt 0:00:17]} Kf7 {[%emt 0:00:00]} 41. Qf6+ {[%emt 0:00:05]} Ke8 {[%emt 0:00:30]} 42. Bc6# {[%emt 0:00:04]} 1-0

[Event "Mentese GM 2019"]
[Site "Mentese"]
[Date "2019.06.26"]
[Round "6.2"]
[White "Bagaturov, Giorgi"]
[Black "Ozen, Deniz"]
[Result "1/2-1/2"]
[ECO "D18"]
[WhiteElo "2422"]
[BlackElo "2405"]
[Annotator "NA"]
[PlyCount "29"]
[EventDate "2019.06.24"]
[EventType "schev"]
[EventCountry "TUR"]
[SourceTitle "playchess.com"]
[Source "ChessBase"]
[SourceQuality "1"]
[TimeControl "5400+30"]

1. d4 {[%emt 0:00:30]} d5 {[%emt 0:00:30]} 2. c4 {[%emt 0:00:30]} c6 {[%emt 0:00:00]} 3. Nf3 {[%emt 0:00:30]} Nf6 {[%emt 0:00:00]} 4. Nc3 {[%emt 0:00:30]} dxc4 {[%emt 0:03:30]} 5. a4 {[%emt 0:00:30]} Bf5 {[%emt 0:01:30]} 6. e3 {[%emt 0:05:30]} e6 {[%emt 0:00:30]} 7. Bxc4 {[%emt 0:00:30]} Bb4 {[%emt 0:00:30]} 8. O-O {[%emt 0:00:30]} Nbd7 {[%emt 0:00:30]} 9. Qb3 {[%emt 0:01:30]} a5 {[%emt 0:00:00]} 10. Na2 {[%emt 0:01:30]} Be7 {[%emt 0:01:00]} 11. Qxb7 {[%emt 0:00:30]} Rb8 {[%emt 0:00:30]} 12. Qa7 {[%emt 0:00:30]} Ra8 {[%emt 0:00:00]} 13. Qb7 {[%emt 0:00:00]} Rb8 {[%emt 0:00:00]} 14. Qa7 {[%emt 0:00:00]} Ra8 {[%emt 0:00:30]} 15. Qb7 {[%emt 0:00:00]} 1/2-1/2

[Event "Mentese GM 2019"]
[Site "Mentese"]
[Date "2019.06.27"]
[Round "8.1"]
[White "Odeev, Handszar"]
[Black "Annaberdiev, Meilis"]
[Result "0-1"]
[ECO "B84"]
[WhiteElo "2386"]
[BlackElo "2532"]
[Annotator "ChessBase"]
[PlyCount "108"]
[EventDate "2019.06.24"]
[EventType "schev"]
[EventCountry "TUR"]
[SourceTitle "playchess.com"]
[Source "ChessBase"]
[SourceQuality "1"]
[TimeControl "5400+30"]

1. e4 {[%emt 0:05:30]} c5 {[%emt 0:00:30]} 2. Nf3 {[%emt 0:00:30]} e6 {[%emt 0:00:30]} 3. d4 {[%emt 0:00:30]} cxd4 {[%emt 0:00:00]} 4. Nxd4 {[%emt 0:00:00]} a6 {[%emt 0:00:00]} 5. Nc3 {[%emt 0:00:00]} Qc7 {[%emt 0:00:30]} 6. Be2 {[%emt 0:00:30]} Nf6 {[%emt 0:02:30]} 7. O-O {[%emt 0:00:30]} d6 {[%emt 0:00:00]} 8. Be3 {[%emt 0:00:30]} b5 {[%emt 0:02:00]} 9. a3 {[%emt 0:08:30]} Bb7 {[%emt 0:00:30]} 10. f3 {[%emt 0:01:30]} Nbd7 {[%emt 0:00:30]} 11. Qd2 {[%emt 0:04:30]} Be7 {[%emt 0:00:30]} 12. g4 {[%emt 0:07:30]} h6 {[%emt 0:03:30]} 13. Rf2 {[%emt 0:01:30]} Rc8 {[%emt 0:05:30]} 14. a4 {[%emt 0:12:30]} b4 {[%emt 0:04:30]} 15. Na2 {[%emt 0:00:30]} d5 {[%emt 0:00:30]} 16. Nxb4 {[%emt 0:06:30]} Bxb4 {[%emt 0:00:30]} 17. Qxb4 {[%emt 0:00:30]} dxe4 {[%emt 0:00:30]} 18. f4 {[%emt 0:00:30]} Nd5 {[%emt 0:00:00]} 19. Qa3 {[%emt 0:00:30]} Nxe3 {[%emt 0:02:00]} 20. Qxe3 {[%emt 0:00:30]} O-O {[%emt 0:00:00]} 21. c4 {[%emt 0:00:30]} e5 {[%emt 0:02:00]} 22. Nf5 {[%emt 0:03:30]} exf4 {[%emt 0:01:30]} 23. Rxf4 {[%emt 0:10:30]} Ne5 {[%emt 0:00:00]} 24. Rd1 {[%emt 0:04:30]} Rcd8 {[%emt 0:00:00]} 25. Rff1 {[%emt 0:01:30]} Nf3+ {[%emt 0:10:30]} 26. Bxf3 {[%emt 0:00:30]} exf3 {[%emt 0:00:30]} 27. c5 {[%emt 0:10:31]} Rfe8 {[%emt 0:12:30]} 28. Rxd8 {[%emt 0:01:27]} Qxd8 {[%emt 0:00:00]} 29. Qd4 {[%emt 0:00:31]} Qg5 {[%emt 0:04:00]} 30. h4 {[%emt 0:15:08]} Qg6 {[%emt 0:00:30]} 31. Qf4 {[%emt 0:01:29]} Qc6 {[%emt 0:01:30]} 32. Kh2 {[%emt 0:02:17]} Qxc5 {[%emt 0:00:30]} 33. Kg3 {[%emt 0:00:23]} Qc2 {[%emt 0:01:30]} 34. Rf2 {[%emt 0:00:25]} Qd1 {[%emt 0:01:30]} 35. Qd4 {[%emt 0:00:37]} Qxd4 {[%emt 0:03:30]} 36. Nxd4 {[%emt 0:00:02]} Re3 {[%emt 0:00:00]} 37. Rd2 {[%emt 0:01:06]} Re1 {[%emt 0:02:00]} 38. Kf2 {[%emt 0:00:21]} Re4 {[%emt 0:00:30]} 39. Kg3 {[%emt 0:00:32]} f2 {[%emt 0:00:00]} 40. Kxf2 {[%emt 0:00:31]} Rxg4 {[%emt 0:00:00]} 41. h5 {[%emt 0:00:37]} Rh4 {[%emt 0:00:30]} 42. b3 {[%emt 0:00:24]} Rxh5 {[%emt 0:00:00]} 43. Kg3 {[%emt 0:00:21]} Rd5 {[%emt 0:01:00]} 44. b4 {[%emt 0:00:38]} h5 {[%emt 0:00:00]} 45. Kf4 {[%emt 0:00:36]} g5+ {[%emt 0:00:00]} 46. Ke3 {[%emt 0:00:05]} Re5+ {[%emt 0:00:30]} 47. Kf2 {[%emt 0:00:09]} h4 {[%emt 0:00:30]} 48. Ne2 {[%emt 0:01:08]} Bc6 {[%emt 0:00:30]} 49. a5 {[%emt 0:00:35]} g4 {[%emt 0:00:30]} 50. Nd4 {[%emt 0:00:36]} g3+ {[%emt 0:00:30]} 51. Kf1 {[%emt 0:00:26]} g2+ {[%emt 0:00:30]} 52. Rxg2+ {[%emt 0:00:32]} Bxg2+ {[%emt 0:00:00]} 53. Kxg2 {[%emt 0:00:03]} Re4 {[%emt 0:00:00]} 54. Nc6 {[%emt 0:00:41]} Kg7 {[%emt 0:00:30]} 0-1

[Event "Mentese GM 2019"]
[Site "Mentese"]
[Date "2019.06.27"]
[Round "8.2"]
[White "Simantsev, Mikhail"]
[Black "Ozen, Deniz"]
[Result "0-1"]
[ECO "A23"]
[WhiteElo "2371"]
[BlackElo "2405"]
[Annotator "NA"]
[PlyCount "72"]
[EventDate "2019.06.24"]
[EventType "schev"]
[EventCountry "TUR"]
[SourceTitle "playchess.com"]
[Source "ChessBase"]
[SourceQuality "1"]
[TimeControl "5400+30"]

1. c4 {[%emt 0:00:30]} Nf6 {[%emt 0:00:30]} 2. Nc3 {[%emt 0:02:30]} e5 {[%emt 0:01:30]} 3. g3 {[%emt 0:01:30]} Bb4 {[%emt 0:01:30]} 4. Bg2 {[%emt 0:00:30]} O-O {[%emt 0:00:00]} 5. e3 {[%emt 0:00:30]} c6 {[%emt 0:02:00]} 6. Nge2 {[%emt 0:03:30]} d5 {[%emt 0:00:30]} 7. cxd5 {[%emt 0:05:30]} cxd5 {[%emt 0:00:30]} 8. d4 {[%emt 0:00:30]} e4 {[%emt 0:01:30]} 9. Qb3 {[%emt 0:01:30]} Nc6 {[%emt 0:00:30]} 10. Bd2 {[%emt 0:01:30]} Be7 {[%emt 0:04:30]} 11. f3 {[%emt 0:05:30]} Na5 {[%emt 0:02:30]} 12. Qc2 {[%emt 0:02:30]} exf3 {[%emt 0:02:30]} 13. Bxf3 {[%emt 0:00:30]} Be6 {[%emt 0:00:30]} 14. Nf4 {[%emt 0:08:30]} Rc8 {[%emt 0:02:30]} 15. b3 {[%emt 0:05:30]} Nc6 {[%emt 0:00:30]} 16. O-O {[%emt 0:04:30]} Qd7 {[%emt 0:00:30]} 17. Qb2 {[%emt 0:09:30]} h6 {[%emt 0:02:30]} 18. Nxe6 {[%emt 0:03:30]} fxe6 {[%emt 0:00:30]} 19. Ne2 {[%emt 0:01:30]} Bd6 {[%emt 0:00:30]} 20. Bc3 {[%emt 0:02:30]} Rf7 {[%emt 0:04:30]} 21. Nf4 {[%emt 0:04:30]} Ne7 {[%emt 0:01:30]} 22. Rae1 {[%emt 0:07:30]} Rcf8 {[%emt 0:00:30]} 23. Qb1 {[%emt 0:07:30]} a6 {[%emt 0:06:30]} 24. e4 {[%emt 0:02:31]} Bxf4 {[%emt 0:01:30]} 25. gxf4 {[%emt 0:00:01]} dxe4 {[%emt 0:00:00]} 26. Bxe4 {[%emt 0:00:01]} Nxe4 {[%emt 0:00:00]} 27. Qxe4 {[%emt 0:00:17]} Nd5 {[%emt 0:00:30]} 28. Bd2 {[%emt 0:00:06]} Rf6 {[%emt 0:00:30]} 29. Rf3 {[%emt 0:05:18]} Qf7 {[%emt 0:01:30]} 30. Ref1 {[%emt 0:01:07]} Qg6+ {[%emt 0:03:30]} 31. Qxg6 {[%emt 0:00:00]} Rxg6+ {[%emt 0:00:00]} 32. Rg3 {[%emt 0:00:00]} Rxg3+ {[%emt 0:00:00]} 33. hxg3 {[%emt 0:00:00]} Rc8 {[%emt 0:00:30]} 34. Rc1 {[%emt 0:00:00]} Rxc1+ {[%emt 0:00:30]} 35. Bxc1 {[%emt 0:00:00]} Nc3 {[%emt 0:00:30]} 36. Bb2 {[%emt 0:00:19]} Nxa2 {[%emt 0:00:30]} 0-1

[Event "Mentese GM 2019"]
[Site "Mentese"]
[Date "2019.06.27"]
[Round "8.3"]
[White "Sevdimaliyev, Urfan"]
[Black "Atakisi, Umut"]
[Result "1/2-1/2"]
[ECO "B33"]
[WhiteElo "2362"]
[BlackElo "2388"]
[Annotator "NA"]
[PlyCount "29"]
[EventDate "2019.06.24"]
[EventType "schev"]
[EventCountry "TUR"]
[SourceTitle "playchess.com"]
[Source "ChessBase"]
[SourceQuality "1"]
[TimeControl "5400+30"]

1. e4 {[%emt 0:00:30]} c5 {[%emt 0:00:30]} 2. Nf3 {[%emt 0:00:00]} Nc6 {[%emt 0:00:00]} 3. d4 {[%emt 0:00:00]} cxd4 {[%emt 0:00:00]} 4. Nxd4 {[%emt 0:00:00]} Nf6 {[%emt 0:00:00]} 5. Nc3 {[%emt 0:00:00]} e6 {[%emt 0:00:00]} 6. Ndb5 {[%emt 0:00:00]} d6 {[%emt 0:00:30]} 7. Bf4 {[%emt 0:00:00]} e5 {[%emt 0:00:00]} 8. Bg5 {[%emt 0:00:30]} a6 {[%emt 0:00:00]} 9. Na3 {[%emt 0:00:00]} b5 {[%emt 0:00:30]} 10. Nd5 {[%emt 0:00:00]} Qa5+ {[%emt 0:01:30]} 11. Bd2 {[%emt 0:00:30]} Qd8 {[%emt 0:00:00]} 12. Bg5 {[%emt 0:00:30]} Qa5+ {[%emt 0:00:00]} 13. Bd2 {[%emt 0:00:00]} Qd8 {[%emt 0:00:30]} 14. Bg5 {[%emt 0:00:00]} Qa5+ {[%emt 0:00:30]} 15. Bd2 {[%emt 0:00:00]} 1/2-1/2

[Event "Mentese GM 2019"]
[Site "Mentese"]
[Date "2019.06.27"]
[Round "8.4"]
[White "Maghalashvili, Davit"]
[Black "Sibashvili, Giorgi"]
[Result "1/2-1/2"]
[ECO "C68"]
[WhiteElo "2500"]
[BlackElo "2368"]
[Annotator "ChessBase"]
[PlyCount "30"]
[EventDate "2019.06.24"]
[EventType "schev"]
[EventCountry "TUR"]
[SourceTitle "playchess.com"]
[Source "ChessBase"]
[SourceQuality "1"]
[TimeControl "5400+30"]

1. e4 {[%emt 0:00:30]} e5 {[%emt 0:00:30]} 2. Nf3 {[%emt 0:00:00]} Nc6 {[%emt 0:00:00]} 3. Bb5 {[%emt 0:00:00]} a6 {[%emt 0:00:00]} 4. Bxc6 {[%emt 0:00:00]} dxc6 {[%emt 0:00:00]} 5. O-O {[%emt 0:00:00]} Bg4 {[%emt 0:00:00]} 6. h3 {[%emt 0:00:30]} h5 {[%emt 0:00:30]} 7. c3 {[%emt 0:00:00]} Qd3 {[%emt 0:00:00]} 8. hxg4 {[%emt 0:00:00]} hxg4 {[%emt 0:00:00]} 9. Nxe5 {[%emt 0:00:00]} Bd6 {[%emt 0:00:00]} 10. Nxd3 {[%emt 0:00:00]} Bh2+ {[%emt 0:00:00]} 11. Kh1 {[%emt 0:00:00]} Bg3+ {[%emt 0:00:00]} 12. Kg1 {[%emt 0:00:00]} Bh2+ {[%emt 0:00:00]} 13. Kh1 {[%emt 0:00:30]} Bg3+ {[%emt 0:00:00]} 14. Kg1 {[%emt 0:00:00]} Bh2+ {[%emt 0:00:00]} 15. Kh1 {[%emt 0:00:00]} Bg3+ {[%emt 0:00:30]} 1/2-1/2

[Event "Mentese GM 2019"]
[Site "Mentese"]
[Date "2019.06.27"]
[Round "8.5"]
[White "Bagaturov, Giorgi"]
[Black "Alumert, Orkun Efe"]
[Result "1/2-1/2"]
[ECO "E08"]
[WhiteElo "2422"]
[BlackElo "2008"]
[Annotator "NA"]
[PlyCount "24"]
[EventDate "2019.06.24"]
[EventType "schev"]
[EventCountry "TUR"]
[SourceTitle "playchess.com"]
[Source "ChessBase"]
[SourceQuality "1"]
[TimeControl "5400+30"]

1. d4 {[%emt 0:00:30]} d5 {[%emt 0:00:30]} 2. c4 {[%emt 0:00:00]} c6 {[%emt 0:00:00]} 3. Nf3 {[%emt 0:00:00]} Nf6 {[%emt 0:00:00]} 4. Qc2 {[%emt 0:00:30]} e6 {[%emt 0:00:00]} 5. g3 {[%emt 0:00:30]} Be7 {[%emt 0:00:00]} 6. Bg2 {[%emt 0:02:30]} O-O {[%emt 0:00:30]} 7. O-O {[%emt 0:00:30]} Nbd7 {[%emt 0:00:30]} 8. Bf4 {[%emt 0:00:30]} Nh5 {[%emt 0:00:00]} 9. Bc1 {[%emt 0:00:30]} Nhf6 {[%emt 0:00:00]} 10. Bf4 {[%emt 0:00:30]} Nh5 {[%emt 0:00:00]} 11. Bc1 {[%emt 0:00:00]} Nhf6 {[%emt 0:00:00]} 12. Bf4 {[%emt 0:01:00]} Nh5 {[%emt 0:00:30]} 1/2-1/2

[Event "Mentese GM 2019"]
[Site "Mentese"]
[Date "2019.06.28"]
[Round "9.1"]
[White "Annaberdiev, Meilis"]
[Black "Simantsev, Mikhail"]
[Result "1-0"]
[ECO "C68"]
[WhiteElo "2532"]
[BlackElo "2371"]
[Annotator "ChessBase"]
[PlyCount "115"]
[EventDate "2019.06.24"]
[EventType "schev"]
[EventCountry "TUR"]
[SourceTitle "playchess.com"]
[Source "ChessBase"]
[SourceQuality "1"]
[TimeControl "5400+30"]

1. e4 {[%emt 0:00:30]} e5 {[%emt 0:00:30]} 2. Nf3 {[%emt 0:00:00]} Nc6 {[%emt 0:00:30]} 3. Bb5 {[%emt 0:01:00]} a6 {[%emt 0:00:30]} 4. Bxc6 {[%emt 0:00:30]} dxc6 {[%emt 0:00:00]} 5. O-O {[%emt 0:00:30]} Bg4 {[%emt 0:00:00]} 6. h3 {[%emt 0:00:00]} h5 {[%emt 0:00:00]} 7. d3 {[%emt 0:00:00]} Qf6 {[%emt 0:00:00]} 8. Be3 {[%emt 0:00:30]} Bxf3 {[%emt 0:00:30]} 9. Qxf3 {[%emt 0:00:00]} Qxf3 {[%emt 0:00:00]} 10. gxf3 {[%emt 0:00:00]} Bd6 {[%emt 0:00:00]} 11. Nd2 {[%emt 0:00:30]} Ne7 {[%emt 0:00:00]} 12. Rfd1 {[%emt 0:00:30]} Ng6 {[%emt 0:05:00]} 13. Kf1 {[%emt 0:00:30]} Nf8 {[%emt 0:01:30]} 14. Nb3 {[%emt 0:11:30]} Ne6 {[%emt 0:09:30]} 15. d4 {[%emt 0:00:00]} exd4 {[%emt 0:16:30]} 16. Nxd4 {[%emt 0:00:00]} Nxd4 {[%emt 0:00:30]} 17. Bxd4 {[%emt 0:00:30]} f6 {[%emt 0:00:30]} 18. Ke2 {[%emt 0:02:30]} Kf7 {[%emt 0:03:30]} 19. Ke3 {[%emt 0:01:30]} g5 {[%emt 0:03:30]} 20. h4 {[%emt 0:00:30]} Bf4+ {[%emt 0:12:30]} 21. Ke2 {[%emt 0:00:00]} g4 {[%emt 0:00:30]} 22. Be3 {[%emt 0:01:00]} gxf3+ {[%emt 0:00:30]} 23. Kxf3 {[%emt 0:00:00]} Bd6 {[%emt 0:04:30]} 24. c4 {[%emt 0:20:00]} Ke6 {[%emt 0:07:30]} 25. c5 {[%emt 0:13:30]} Be7 {[%emt 0:05:30]} 26. Rac1 {[%emt 0:04:30]} Rhg8 {[%emt 0:04:30]} 27. Bf4 {[%emt 0:01:30]} Rg4 {[%emt 0:02:30]} 28. Bxc7 {[%emt 0:04:30]} Rxh4 {[%emt 0:01:30]} 29. Bd6 {[%emt 0:00:00]} Rd8 {[%emt 0:00:30]} 30. Bxe7 {[%emt 0:00:00]} Rxd1 {[%emt 0:00:30]} 31. Rxd1 {[%emt 0:00:00]} Kxe7 {[%emt 0:00:00]} 32. Rg1 {[%emt 0:06:00]} Kf7 {[%emt 0:00:00]} 33. Ke3 {[%emt 0:00:30]} f5 {[%emt 0:02:30]} 34. exf5 {[%emt 0:00:00]} Kf6 {[%emt 0:01:50]} 35. Rg8 {[%emt 0:10:00]} Kxf5 {[%emt 0:03:00]} 36. Rf8+ {[%emt 0:00:30]} Ke6 {[%emt 0:00:37]} 37. Rh8 {[%emt 0:02:30]} Kd5 {[%emt 0:01:17]} 38. Rh7 {[%emt 0:00:00]} Kxc5 {[%emt 0:03:20]} 39. Rxb7 {[%emt 0:00:00]} Rh1 {[%emt 0:00:04]} 40. Kf3 {[%emt 0:00:30]} h4 {[%emt 0:02:47]} 41. Kg2 {[%emt 0:00:30]} Ra1 {[%emt 0:03:30]} 42. a3 {[%emt 0:00:30]} a5 {[%emt 0:00:44]} 43. Ra7 {[%emt 0:00:30]} Kb6 {[%emt 0:04:30]} 44. Rd7 {[%emt 0:00:00]} Rc1 {[%emt 0:01:41]} 45. Rd2 {[%emt 0:00:00]} Rc4 {[%emt 0:00:51]} 46. Kf3 {[%emt 0:00:30]} Kc5 {[%emt 0:00:31]} 47. Ke3 {[%emt 0:02:30]} Rg4 {[%emt 0:00:01]} 48. f3 {[%emt 0:00:30]} Rg8 {[%emt 0:01:18]} 49. Rh2 {[%emt 0:00:30]} Rh8 {[%emt 0:01:21]} 50. Ke4 {[%emt 0:01:30]} Kc4 {[%emt 0:00:22]} 51. f4 {[%emt 0:00:00]} Kb3 {[%emt 0:00:22]} 52. f5 {[%emt 0:00:00]} c5 {[%emt 0:01:01]} 53. f6 {[%emt 0:00:30]} c4 {[%emt 0:00:39]} 54. Kd5 {[%emt 0:00:30]} c3 {[%emt 0:00:59]} 55. bxc3 {[%emt 0:00:00]} Kxa3 {[%emt 0:00:07]} 56. f7 {[%emt 0:00:00]} Kb3 {[%emt 0:01:04]} 57. Rxh4 {[%emt 0:00:00]} Rf8 {[%emt 0:00:07]} 58. Ke4 {[%emt 0:01:00]} 1-0